[Event "Late-Titled-Tuesday-Blitz-May-14-2024"]
[Site "Chess.com"]
[Date "2024.05.14"]
[Round "4"]
[White "slidingknight2775"]
[Black "MITerryble"]
[Result "0-1"]
[WhiteElo "2614"]
[BlackElo "3003"]
[TimeControl "180+1"]
[EndTime "14:40:13 PDT"]
[Termination "MITerryble won by checkmate"]

1. c4 {[%clk 0:03:00.9]} 1... e5 {[%clk 0:02:56.7]} 2. Nc3 {[%clk 0:03:01.1]}
2... Nc6 {[%clk 0:02:56.5]} 3. Nf3 {[%clk 0:03:01.1]} 3... f5 {[%clk 0:02:56.8]}
4. g3 {[%clk 0:03:01.1]} 4... d6 {[%clk 0:02:50.1]} 5. d4 {[%clk 0:03:01.2]}
5... e4 {[%clk 0:02:48.4]} 6. Nh4 {[%clk 0:03:01.8]} 6... g5 {[%clk 0:02:43.4]}
7. Ng2 {[%clk 0:02:58]} 7... Bg7 {[%clk 0:02:43.5]} 8. h4 {[%clk 0:02:55.3]}
8... h6 {[%clk 0:02:16.6]} 9. hxg5 {[%clk 0:02:27.5]} 9... hxg5 {[%clk
0:02:17.5]} 10. Rxh8 {[%clk 0:02:28]} 10... Bxh8 {[%clk 0:02:18.4]} 11. Be3
{[%clk 0:02:28.5]} 11... Qf6 {[%clk 0:01:57.4]} 12. Nd5 {[%clk 0:02:25.2]} 12...
Qg7 {[%clk 0:01:57.3]} 13. Qd2 {[%clk 0:02:05.2]} 13... Nf6 {[%clk 0:01:55.7]}
14. Nxf6+ {[%clk 0:01:55.1]} 14... Qxf6 {[%clk 0:01:56.6]} 15. O-O-O {[%clk
0:01:55.6]} 15... Bd7 {[%clk 0:01:49.6]} 16. f3 {[%clk 0:01:00.2]} 16... Qg7
{[%clk 0:01:22.5]} 17. fxe4 {[%clk 0:00:48.2]} 17... fxe4 {[%clk 0:01:23.4]} 18.
d5 {[%clk 0:00:38.1]} 18... Ne5 {[%clk 0:01:21.3]} 19. Bd4 {[%clk 0:00:38.4]}
19... Qe7 {[%clk 0:01:15.2]} 20. Ne3 {[%clk 0:00:36.5]} 20... b6 {[%clk
0:01:15.7]} 21. Bg2 {[%clk 0:00:33.7]} 21... O-O-O {[%clk 0:01:16]} 22. Qc3
{[%clk 0:00:30.7]} 22... Qh7 {[%clk 0:01:02.5]} 23. Rh1 {[%clk 0:00:28.6]} 23...
Qg6 {[%clk 0:01:03.1]} 24. b3 {[%clk 0:00:20]} 24... Rf8 {[%clk 0:01:02.2]} 25.
a4 {[%clk 0:00:17.1]} 25... Kb7 {[%clk 0:01:00.1]} 26. a5 {[%clk 0:00:17]} 26...
Bg7 {[%clk 0:01:00.4]} 27. Kb2 {[%clk 0:00:13.7]} 27... Rf2 {[%clk 0:00:59.6]}
28. Rf1 {[%clk 0:00:13.3]} 28... Rxe2+ {[%clk 0:00:59.9]} 29. Ka3 {[%clk
0:00:11.7]} 29... Nd3 {[%clk 0:00:35.3]} 30. Bxg7 {[%clk 0:00:05]} 30... Rxe3
{[%clk 0:00:35.8]} 31. Bd4 {[%clk 0:00:05.6]} 31... Rxg3 {[%clk 0:00:36]} 32.
Bh1 {[%clk 0:00:04.7]} 32... Bh3 {[%clk 0:00:29.7]} 33. Rf6 {[%clk 0:00:04.7]}
33... Qh7 {[%clk 0:00:28.9]} 34. axb6 {[%clk 0:00:04.9]} 34... axb6 {[%clk
0:00:28.6]} 35. Bxb6 {[%clk 0:00:03.8]} 35... cxb6 {[%clk 0:00:27.9]} 36. Rxd6
{[%clk 0:00:02]} 36... Qe7 {[%clk 0:00:27.2]} 37. Qf6 {[%clk 0:00:02.6]} 37...
Qxf6 {[%clk 0:00:27.3]} 38. Rxf6 {[%clk 0:00:03.5]} 38... Nc5 {[%clk 0:00:27.9]}
39. Ka2 {[%clk 0:00:01.1]} 39... Bg2 {[%clk 0:00:25.8]} 40. Rf7+ {[%clk
0:00:02]} 40... Kc8 {[%clk 0:00:25.8]} 41. Bxg2 {[%clk 0:00:02.9]} 41... Rxg2+
{[%clk 0:00:26.1]} 42. Ka3 {[%clk 0:00:03]} 42... Rg3 {[%clk 0:00:26.7]} 43. Ka2
{[%clk 0:00:02.2]} 43... Rxb3 {[%clk 0:00:26.2]} 44. Rg7 {[%clk 0:00:02.5]}
44... Rg3 {[%clk 0:00:26.1]} 45. Rf7 {[%clk 0:00:02.8]} 45... e3 {[%clk
0:00:26.1]} 46. Re7 {[%clk 0:00:03.1]} 46... Kd8 {[%clk 0:00:25.1]} 47. Re5
{[%clk 0:00:02.4]} 47... Kd7 {[%clk 0:00:25.4]} 48. Kb1 {[%clk 0:00:01.7]} 48...
Kd6 {[%clk 0:00:25.4]} 49. Re8 {[%clk 0:00:02.4]} 49... Rg4 {[%clk 0:00:20]} 50.
Rxe3 {[%clk 0:00:01.4]} 50... Rxc4 {[%clk 0:00:20.5]} 51. Rg3 {[%clk 0:00:02.3]}
51... g4 {[%clk 0:00:20.5]} 52. Rg1 {[%clk 0:00:02.7]} 52... Kxd5 {[%clk
0:00:21]} 53. Rh1 {[%clk 0:00:03.6]} 53... Rd4 {[%clk 0:00:20.9]} 54. Rh5+
{[%clk 0:00:04.5]} 54... Kc4 {[%clk 0:00:21]} 55. Rh6 {[%clk 0:00:05.4]} 55...
b5 {[%clk 0:00:21.9]} 56. Ka2 {[%clk 0:00:05.8]} 56... b4 {[%clk 0:00:22.8]} 57.
Rf6 {[%clk 0:00:05.6]} 57... Rd2+ {[%clk 0:00:23.1]} 58. Kb1 {[%clk 0:00:05.8]}
58... g3 {[%clk 0:00:23.6]} 59. Rf3 {[%clk 0:00:06]} 59... g2 {[%clk 0:00:21.8]}
60. Rg3 {[%clk 0:00:06.6]} 60... Nd3 {[%clk 0:00:22.2]} 61. Rg4+ {[%clk
0:00:06.1]} 61... Kc3 {[%clk 0:00:22.7]} 62. Ka1 {[%clk 0:00:03]} 62... Rd1+
{[%clk 0:00:22.5]} 63. Ka2 {[%clk 0:00:03.6]} 63... b3+ {[%clk 0:00:23.4]} 64.
Ka3 {[%clk 0:00:03.8]} 64... Ra1# {[%clk 0:00:24.3]} 0-1

[Event "Late-Titled-Tuesday-Blitz-May-14-2024"]
[Site "Chess.com"]
[Date "2024.05.14"]
[Round "4"]
[White "LiemLe"]
[Black "Statham_01"]
[Result "1-0"]
[WhiteElo "3039"]
[BlackElo "2618"]
[TimeControl "180+1"]
[EndTime "14:40:14 PDT"]
[Termination "LiemLe won by checkmate"]

1. Nf3 {[%clk 0:03:00.9]} 1... d5 {[%clk 0:02:59.2]} 2. e3 {[%clk 0:03:00.7]}
2... Bg4 {[%clk 0:02:58.2]} 3. c4 {[%clk 0:02:58.6]} 3... c6 {[%clk 0:02:54.4]}
4. Qb3 {[%clk 0:02:38.2]} 4... Nd7 {[%clk 0:02:28.1]} 5. Qxb7 {[%clk 0:02:25.2]}
5... e6 {[%clk 0:02:17.4]} 6. Qxc6 {[%clk 0:02:08.6]} 6... Rc8 {[%clk
0:02:16.7]} 7. Qa4 {[%clk 0:02:08.1]} 7... Nf6 {[%clk 0:02:15]} 8. Nc3 {[%clk
0:02:05.7]} 8... Bd6 {[%clk 0:02:10.5]} 9. d4 {[%clk 0:01:55.8]} 9... dxc4
{[%clk 0:02:00.2]} 10. Bxc4 {[%clk 0:01:56.7]} 10... O-O {[%clk 0:01:59.7]} 11.
Be2 {[%clk 0:01:56.8]} 11... e5 {[%clk 0:01:53.8]} 12. dxe5 {[%clk 0:01:26.3]}
12... Bxe5 {[%clk 0:01:29]} 13. O-O {[%clk 0:01:23.5]} 13... Nc5 {[%clk
0:01:18.4]} 14. Qa3 {[%clk 0:01:11.4]} 14... Bd6 {[%clk 0:01:16.1]} 15. Rd1
{[%clk 0:01:11.6]} 15... Qe7 {[%clk 0:01:03.6]} 16. Nb5 {[%clk 0:01:05.3]} 16...
Bb8 {[%clk 0:00:59.6]} 17. Bd2 {[%clk 0:01:05.3]} 17... Nfe4 {[%clk 0:00:48.6]}
18. Be1 {[%clk 0:00:57.5]} 18... Qf6 {[%clk 0:00:45.2]} 19. h3 {[%clk
0:00:45.2]} 19... Bh5 {[%clk 0:00:37.2]} 20. Rd5 {[%clk 0:00:34.2]} 20... Qh6
{[%clk 0:00:31.9]} 21. Rad1 {[%clk 0:00:26.7]} 21... Ne6 {[%clk 0:00:29.6]} 22.
Nc3 {[%clk 0:00:18.5]} 22... Nf6 {[%clk 0:00:22]} 23. Ra5 {[%clk 0:00:17]} 23...
Bc7 {[%clk 0:00:21.2]} 24. Rxa7 {[%clk 0:00:16.6]} 24... Bxf3 {[%clk 0:00:18.9]}
25. Bxf3 {[%clk 0:00:17.5]} 25... Ng5 {[%clk 0:00:19.6]} 26. Bb7 {[%clk
0:00:15.6]} 26... Nxh3+ {[%clk 0:00:16.8]} 27. gxh3 {[%clk 0:00:16.5]} 27...
Qxh3 {[%clk 0:00:17.5]} 28. Bg2 {[%clk 0:00:17.3]} 28... Qh2+ {[%clk 0:00:11.9]}
29. Kf1 {[%clk 0:00:17.4]} 29... Ng4 {[%clk 0:00:12.5]} 30. Ra4 {[%clk
0:00:15.3]} 30... Qh5 {[%clk 0:00:12]} 31. Rxg4 {[%clk 0:00:12]} 31... Qxg4
{[%clk 0:00:12.9]} 32. Qa4 {[%clk 0:00:12.8]} 32... Qh5 {[%clk 0:00:11.2]} 33.
Nd5 {[%clk 0:00:13.4]} 33... Bd8 {[%clk 0:00:06.8]} 34. Nf4 {[%clk 0:00:11.8]}
34... Qg4 {[%clk 0:00:05.9]} 35. Qd7 {[%clk 0:00:08.8]} 35... Qxd7 {[%clk
0:00:03.9]} 36. Rxd7 {[%clk 0:00:09.7]} 36... Bf6 {[%clk 0:00:04.8]} 37. b4
{[%clk 0:00:09.4]} 37... Rc1 {[%clk 0:00:05.3]} 38. Ke2 {[%clk 0:00:09.2]} 38...
Ra1 {[%clk 0:00:05]} 39. Ra7 {[%clk 0:00:08.3]} 39... g6 {[%clk 0:00:04.9]} 40.
Bd5 {[%clk 0:00:08.2]} 40... Bg7 {[%clk 0:00:03.3]} 41. a4 {[%clk 0:00:08.3]}
41... Rb1 {[%clk 0:00:02.7]} 42. b5 {[%clk 0:00:08.1]} 42... Rb2+ {[%clk
0:00:03.2]} 43. Kf3 {[%clk 0:00:08.6]} 43... g5 {[%clk 0:00:03.4]} 44. Nh5
{[%clk 0:00:08.5]} 44... Be5 {[%clk 0:00:03.9]} 45. Re7 {[%clk 0:00:07.6]} 45...
Bd6 {[%clk 0:00:03.6]} 46. Rd7 {[%clk 0:00:08.1]} 46... Be5 {[%clk 0:00:03.4]}
47. Ke4 {[%clk 0:00:08.2]} 47... Bh8 {[%clk 0:00:02.3]} 48. Rb7 {[%clk
0:00:07.4]} 48... Rb1 {[%clk 0:00:02.5]} 49. Bd2 {[%clk 0:00:07.3]} 49... Re8+
{[%clk 0:00:02.1]} 50. Kf3 {[%clk 0:00:07.4]} 50... Rf8 {[%clk 0:00:02.4]} 51.
a5 {[%clk 0:00:07.6]} 51... Rb2 {[%clk 0:00:02.9]} 52. Bc1 {[%clk 0:00:07]}
52... Rc2 {[%clk 0:00:03.1]} 53. Ba3 {[%clk 0:00:07.3]} 53... Rd8 {[%clk
0:00:01.5]} 54. Bxf7# {[%clk 0:00:07.1]} 1-0

[Event "Late-Titled-Tuesday-Blitz-May-14-2024"]
[Site "Chess.com"]
[Date "2024.05.14"]
[Round "4"]
[White "familijatop71"]
[Black "Bala-Afiada"]
[Result "0-1"]
[WhiteElo "2296"]
[BlackElo "1968"]
[TimeControl "180+1"]
[EndTime "14:40:14 PDT"]
[Termination "Bala-Afiada won on time"]

1. e4 {[%clk 0:03:00.9]} 1... c5 {[%clk 0:03:00.4]} 2. c3 {[%clk 0:03:00.3]}
2... Nf6 {[%clk 0:03:00.2]} 3. e5 {[%clk 0:03:00.3]} 3... Nd5 {[%clk 0:03:00.9]}
4. Nf3 {[%clk 0:03:00.6]} 4... d6 {[%clk 0:03:00.9]} 5. d4 {[%clk 0:02:57.9]}
5... dxe5 {[%clk 0:02:52.3]} 6. dxe5 {[%clk 0:02:49.8]} 6... Nc6 {[%clk
0:02:49.1]} 7. Bc4 {[%clk 0:02:45]} 7... Nb6 {[%clk 0:02:48.2]} 8. Qxd8+ {[%clk
0:02:39.4]} 8... Nxd8 {[%clk 0:02:48.4]} 9. Bb3 {[%clk 0:02:37.8]} 9... Bg4
{[%clk 0:02:37.1]} 10. Nbd2 {[%clk 0:02:36.8]} 10... e6 {[%clk 0:02:36.3]} 11.
h3 {[%clk 0:02:36]} 11... Bh5 {[%clk 0:02:34.6]} 12. Ne4 {[%clk 0:02:23]} 12...
Bxf3 {[%clk 0:02:10.3]} 13. gxf3 {[%clk 0:02:23.9]} 13... Be7 {[%clk 0:02:10.9]}
14. Be3 {[%clk 0:02:21.2]} 14... c4 {[%clk 0:02:00.1]} 15. Bxb6 {[%clk
0:02:16.3]} 15... cxb3 {[%clk 0:01:35.9]} 16. axb3 {[%clk 0:02:15.5]} 16... Nc6
{[%clk 0:01:34.3]} 17. f4 {[%clk 0:02:08.3]} 17... O-O {[%clk 0:01:28.3]} 18.
Bc5 {[%clk 0:02:05.6]} 18... Bxc5 {[%clk 0:01:15.2]} 19. Nxc5 {[%clk 0:02:05.2]}
19... b6 {[%clk 0:01:16.1]} 20. Ne4 {[%clk 0:02:04.2]} 20... f6 {[%clk
0:01:10.9]} 21. exf6 {[%clk 0:01:54.4]} 21... gxf6 {[%clk 0:01:11.8]} 22. Rg1+
{[%clk 0:01:54.1]} 22... Kf7 {[%clk 0:00:57.9]} 23. Ke2 {[%clk 0:01:53.4]} 23...
Rg8 {[%clk 0:00:54.9]} 24. b4 {[%clk 0:01:47.9]} 24... a5 {[%clk 0:00:38.8]} 25.
bxa5 {[%clk 0:01:45.1]} 25... bxa5 {[%clk 0:00:39.7]} 26. Rxg8 {[%clk
0:01:31.6]} 26... Rxg8 {[%clk 0:00:33]} 27. h4 {[%clk 0:01:26.1]} 27... Rg4
{[%clk 0:00:26.9]} 28. Ke3 {[%clk 0:01:16.3]} 28... Rxh4 {[%clk 0:00:25.2]} 29.
Rd1 {[%clk 0:01:16]} 29... Rh3+ {[%clk 0:00:24.4]} 30. Ng3 {[%clk 0:01:08.4]}
30... e5 {[%clk 0:00:20.4]} 31. fxe5 {[%clk 0:01:06.2]} 31... Nxe5 {[%clk
0:00:19.6]} 32. b4 {[%clk 0:00:53.2]} 32... axb4 {[%clk 0:00:14.2]} 33. cxb4
{[%clk 0:00:54.1]} 33... Nc4+ {[%clk 0:00:14.4]} 34. Kd4 {[%clk 0:00:45]} 34...
Rh4+ {[%clk 0:00:14.8]} 35. Kc5 {[%clk 0:00:41.4]} 35... Nb2 {[%clk 0:00:12.5]}
36. Rd7+ {[%clk 0:00:34.8]} 36... Kg6 {[%clk 0:00:12.9]} 37. b5 {[%clk
0:00:28.2]} 37... Rc4+ {[%clk 0:00:11.8]} 38. Kd6 {[%clk 0:00:25.6]} 38... Na4
{[%clk 0:00:11.1]} 39. Rc7 {[%clk 0:00:19.8]} 39... Rd4+ {[%clk 0:00:09.8]} 40.
Ke6 {[%clk 0:00:15.3]} 40... Rb4 {[%clk 0:00:09.4]} 41. Nf5 {[%clk 0:00:04.6]}
41... Rxb5 {[%clk 0:00:05.2]} 42. Rg7+ {[%clk 0:00:04.8]} 42... Kh5 {[%clk
0:00:05.8]} 43. Rxh7+ {[%clk 0:00:05.4]} 43... Kg4 {[%clk 0:00:05.4]} 44. Rg7+
{[%clk 0:00:05]} 44... Kf4 {[%clk 0:00:05.2]} 45. Nd6 {[%clk 0:00:02.9]} 45...
Nc5+ {[%clk 0:00:03.9]} 46. Kxf6 {[%clk 0:00:02]} 46... Rb6 {[%clk 0:00:04.1]}
47. Ke7 {[%clk 0:00:01.8]} 47... Ne4 {[%clk 0:00:03.8]} 48. Rf7+ {[%clk
0:00:01.4]} 48... Ke5 {[%clk 0:00:03.5]} 0-1

[Event "Late-Titled-Tuesday-Blitz-May-14-2024"]
[Site "Chess.com"]
[Date "2024.05.14"]
[Round "4"]
[White "besarquis"]
[Black "balack95"]
[Result "1-0"]
[WhiteElo "2338"]
[BlackElo "2497"]
[TimeControl "180+1"]
[EndTime "14:40:20 PDT"]
[Termination "besarquis won by resignation"]

1. e4 {[%clk 0:02:51.9]} 1... d5 {[%clk 0:02:58.3]} 2. exd5 {[%clk 0:02:51.5]}
2... Qxd5 {[%clk 0:02:59.2]} 3. Nc3 {[%clk 0:02:51.8]} 3... Qe5+ {[%clk
0:02:59.7]} 4. Be2 {[%clk 0:02:49.1]} 4... c6 {[%clk 0:03:00]} 5. Nf3 {[%clk
0:02:49.4]} 5... Qc7 {[%clk 0:03:00.9]} 6. d4 {[%clk 0:02:48.2]} 6... Bg4 {[%clk
0:03:01.4]} 7. h3 {[%clk 0:02:48.2]} 7... Bxf3 {[%clk 0:03:01.4]} 8. Bxf3 {[%clk
0:02:48.1]} 8... e6 {[%clk 0:03:02]} 9. g3 {[%clk 0:02:46.2]} 9... Nf6 {[%clk
0:02:59.2]} 10. O-O {[%clk 0:02:44.9]} 10... Nbd7 {[%clk 0:02:59]} 11. Re1
{[%clk 0:02:42.6]} 11... O-O-O {[%clk 0:02:57.2]} 12. Qe2 {[%clk 0:02:40.3]}
12... h5 {[%clk 0:02:56.5]} 13. Bg5 {[%clk 0:02:21.2]} 13... Bd6 {[%clk
0:02:55]} 14. Ne4 {[%clk 0:02:14]} 14... Be7 {[%clk 0:02:26.2]} 15. Bf4 {[%clk
0:02:14.2]} 15... Qa5 {[%clk 0:02:26]} 16. Nd6+ {[%clk 0:02:09.6]} 16... Bxd6
{[%clk 0:02:25.9]} 17. Bxd6 {[%clk 0:02:09.9]} 17... h4 {[%clk 0:02:24.2]} 18.
g4 {[%clk 0:02:05.8]} 18... Nb6 {[%clk 0:02:21.7]} 19. Bh2 {[%clk 0:02:01.4]}
19... Rxd4 {[%clk 0:02:16.4]} 20. c3 {[%clk 0:02:00.8]} 20... Rd7 {[%clk
0:02:13.9]} 21. Rad1 {[%clk 0:01:52.8]} 21... Rhd8 {[%clk 0:02:01]} 22. Rxd7
{[%clk 0:01:52.1]} 22... Rxd7 {[%clk 0:01:59.9]} 23. Rd1 {[%clk 0:01:52.4]}
23... Rxd1+ {[%clk 0:01:24.5]} 24. Qxd1 {[%clk 0:01:52.1]} 24... Nfd5 {[%clk
0:01:08.3]} 25. Qd4 {[%clk 0:01:45.1]} 25... f6 {[%clk 0:00:58.5]} 26. c4 {[%clk
0:01:45.2]} 26... Qb4 {[%clk 0:00:51.9]} 27. b3 {[%clk 0:01:38.8]} 27... Qc3
{[%clk 0:00:51.6]} 28. Qe4 {[%clk 0:01:25.9]} 28... Qc1+ {[%clk 0:00:29.5]} 29.
Kg2 {[%clk 0:01:22.9]} 29... Nc7 {[%clk 0:00:25.1]} 30. Bf4 {[%clk 0:00:51.1]}
30... Qc3 {[%clk 0:00:24.5]} 31. Qh7 {[%clk 0:00:46.7]} 31... e5 {[%clk
0:00:21.2]} 32. Qg8+ {[%clk 0:00:46.3]} 32... Kd7 {[%clk 0:00:21.5]} 33. Qxg7+
{[%clk 0:00:46.1]} 33... Kd6 {[%clk 0:00:18.1]} 34. Qxf6+ {[%clk 0:00:45.7]}
34... Ne6 {[%clk 0:00:18.8]} 35. Be3 {[%clk 0:00:35.1]} 35... Nd7 {[%clk
0:00:18.9]} 36. Qg6 {[%clk 0:00:28.8]} 36... a5 {[%clk 0:00:15.8]} 37. Be4
{[%clk 0:00:28.6]} 37... Nc5 {[%clk 0:00:15.4]} 38. Bxc5+ {[%clk 0:00:24.7]}
38... Kxc5 {[%clk 0:00:14.4]} 39. Qxe6 {[%clk 0:00:24.8]} 39... Kd4 {[%clk
0:00:14.3]} 40. Bf3 {[%clk 0:00:21.5]} 40... Qb2 {[%clk 0:00:14.7]} 41. Qd6+
{[%clk 0:00:19.5]} 41... Kc3 {[%clk 0:00:15.2]} 42. Qxe5+ {[%clk 0:00:19.2]}
42... Kc2 {[%clk 0:00:16.1]} 43. Qxb2+ {[%clk 0:00:18.7]} 43... Kxb2 {[%clk
0:00:17]} 44. g5 {[%clk 0:00:19.2]} 44... Kxa2 {[%clk 0:00:17.9]} 45. Bd1 {[%clk
0:00:19.2]} 45... Kb2 {[%clk 0:00:17.8]} 46. g6 {[%clk 0:00:19.4]} 46... Kc1
{[%clk 0:00:18.7]} 47. g7 {[%clk 0:00:19.8]} 47... Kxd1 {[%clk 0:00:19]} 48.
g8=Q {[%clk 0:00:20.2]} 48... Kc2 {[%clk 0:00:19.9]} 49. c5 {[%clk 0:00:18.7]}
49... Kc3 {[%clk 0:00:19]} 50. Qc4+ {[%clk 0:00:18.6]} 50... Kb2 {[%clk
0:00:19.6]} 51. b4 {[%clk 0:00:18.9]} 51... a4 {[%clk 0:00:19.8]} 52. f4 {[%clk
0:00:16]} 52... a3 {[%clk 0:00:19.8]} 53. f5 {[%clk 0:00:14.9]} 53... a2 {[%clk
0:00:20.3]} 54. Qxa2+ {[%clk 0:00:15.2]} 54... Kxa2 {[%clk 0:00:21.2]} 55. f6
{[%clk 0:00:15.9]} 55... Kb3 {[%clk 0:00:22.1]} 56. f7 {[%clk 0:00:16.5]} 56...
Kxb4 {[%clk 0:00:23]} 57. f8=Q {[%clk 0:00:16.9]} 57... Kc4 {[%clk 0:00:21.6]}
58. Kf3 {[%clk 0:00:17.1]} 58... Kb5 {[%clk 0:00:21.2]} 59. Kg4 {[%clk
0:00:17.4]} 59... b6 {[%clk 0:00:22.1]} 60. cxb6 {[%clk 0:00:17]} 60... Kxb6
{[%clk 0:00:23]} 61. Qb4+ {[%clk 0:00:17]} 61... Kc7 {[%clk 0:00:23]} 62. Qc5
{[%clk 0:00:17.2]} 62... Kd7 {[%clk 0:00:23.6]} 63. Kf5 {[%clk 0:00:17.4]} 63...
Kc7 {[%clk 0:00:24.5]} 64. Ke6 {[%clk 0:00:17.7]} 64... Kb7 {[%clk 0:00:24.1]}
65. Kd6 {[%clk 0:00:17.2]} 65... Kb8 {[%clk 0:00:24.5]} 66. Qxc6 {[%clk
0:00:16.9]} 66... Ka7 {[%clk 0:00:25.4]} 67. Qb5 {[%clk 0:00:17.4]} 67... Ka8
{[%clk 0:00:25.6]} 68. Kc7 {[%clk 0:00:18]} 1-0

[Event "Late-Titled-Tuesday-Blitz-May-14-2024"]
[Site "Chess.com"]
[Date "2024.05.14"]
[Round "4"]
[White "Orest_Vovk"]
[Black "Grischuk"]
[Result "1/2-1/2"]
[WhiteElo "2694"]
[BlackElo "3127"]
[TimeControl "180+1"]
[EndTime "14:40:23 PDT"]
[Termination "Game drawn by repetition"]

1. h4 {[%clk 0:03:00.9]} 1... e5 {[%clk 0:02:58.2]} 2. h5 {[%clk 0:03:01.3]}
2... d5 {[%clk 0:02:57]} 3. h6 {[%clk 0:03:01.8]} 3... Nxh6 {[%clk 0:02:48.8]}
4. d4 {[%clk 0:03:02.4]} 4... Nc6 {[%clk 0:02:43.6]} 5. Bxh6 {[%clk 0:03:02.4]}
5... gxh6 {[%clk 0:02:43.4]} 6. dxe5 {[%clk 0:03:03]} 6... Nxe5 {[%clk
0:02:39.3]} 7. Nf3 {[%clk 0:03:03.6]} 7... Bg7 {[%clk 0:02:35.5]} 8. Nxe5 {[%clk
0:03:02.4]} 8... Bxe5 {[%clk 0:02:36.4]} 9. Nc3 {[%clk 0:03:02.7]} 9... c6
{[%clk 0:02:34.9]} 10. Qd3 {[%clk 0:02:54.2]} 10... Qf6 {[%clk 0:02:20.6]} 11.
Qf3 {[%clk 0:02:26.2]} 11... Qxf3 {[%clk 0:02:12.9]} 12. gxf3 {[%clk 0:02:24.3]}
12... Bf5 {[%clk 0:01:55.1]} 13. O-O-O {[%clk 0:02:22.3]} 13... Bg6 {[%clk
0:01:55]} 14. e3 {[%clk 0:02:19.6]} 14... h5 {[%clk 0:01:33.6]} 15. f4 {[%clk
0:02:15.4]} 15... Bf6 {[%clk 0:01:33.7]} 16. Bd3 {[%clk 0:02:14.2]} 16... h4
{[%clk 0:01:33.5]} 17. f5 {[%clk 0:02:04.8]} 17... Bh5 {[%clk 0:01:33.3]} 18.
Be2 {[%clk 0:02:03.9]} 18... Bxc3 {[%clk 0:01:23.3]} 19. Bxh5 {[%clk 0:02:01.4]}
19... Bf6 {[%clk 0:01:24]} 20. Rdg1 {[%clk 0:01:48.2]} 20... Ke7 {[%clk
0:01:18.8]} 21. b3 {[%clk 0:01:38.7]} 21... Rhg8 {[%clk 0:01:05.8]} 22. Kd2
{[%clk 0:01:38.2]} 22... h6 {[%clk 0:01:03.5]} 23. f4 {[%clk 0:01:28.6]} 23...
Rg3 {[%clk 0:00:38.9]} 24. Rxg3 {[%clk 0:01:17.6]} 24... hxg3 {[%clk 0:00:39.8]}
25. Ke2 {[%clk 0:01:18]} 25... Rg8 {[%clk 0:00:37.2]} 26. Kf3 {[%clk 0:01:14.2]}
26... b5 {[%clk 0:00:33.9]} 27. Rg1 {[%clk 0:01:00.7]} 27... Bc3 {[%clk
0:00:24.3]} 28. Rxg3 {[%clk 0:00:58.8]} 28... Rxg3+ {[%clk 0:00:25.2]} 29. Kxg3
{[%clk 0:00:59.2]} 29... f6 {[%clk 0:00:24.2]} 30. Kf3 {[%clk 0:00:56.8]} 30...
Kd6 {[%clk 0:00:24.3]} 31. Ke2 {[%clk 0:00:42.4]} 31... b4 {[%clk 0:00:16.8]}
32. Kd3 {[%clk 0:00:39.9]} 32... Bb2 {[%clk 0:00:17.1]} 33. Be8 {[%clk
0:00:35.1]} 33... a5 {[%clk 0:00:16.5]} 34. Bh5 {[%clk 0:00:34]} 34... Ke7
{[%clk 0:00:15.9]} 35. Bg6 {[%clk 0:00:32.4]} 35... Kd7 {[%clk 0:00:12.5]} 36.
Bh5 {[%clk 0:00:32.5]} 36... Kd6 {[%clk 0:00:12.9]} 37. Be8 {[%clk 0:00:32.2]}
37... Bc1 {[%clk 0:00:12.3]} 38. Bg6 {[%clk 0:00:31.8]} 38... Ke7 {[%clk
0:00:10]} 39. Bh5 {[%clk 0:00:31.1]} 39... c5 {[%clk 0:00:07.8]} 40. Bg6 {[%clk
0:00:30.8]} 40... Kd6 {[%clk 0:00:05.5]} 41. Be8 {[%clk 0:00:29.1]} 41... c4+
{[%clk 0:00:04.8]} 42. Ke2 {[%clk 0:00:20.6]} 42... Kc5 {[%clk 0:00:04.6]} 43.
Bf7 {[%clk 0:00:19]} 43... Bb2 {[%clk 0:00:04.2]} 44. Kd2 {[%clk 0:00:16.2]}
44... Ba3 {[%clk 0:00:04.1]} 45. Ke2 {[%clk 0:00:16.2]} 45... Bc1 {[%clk
0:00:04.4]} 46. Kf3 {[%clk 0:00:10.8]} 46... c3 {[%clk 0:00:02.7]} 47. Ke2
{[%clk 0:00:08.2]} 47... d4 {[%clk 0:00:02.6]} 48. exd4+ {[%clk 0:00:05.3]}
48... Kxd4 {[%clk 0:00:03.5]} 49. Kf3 {[%clk 0:00:04.8]} 49... Bd2 {[%clk
0:00:03.8]} 50. Bg6 {[%clk 0:00:05.2]} 50... Be3 {[%clk 0:00:04]} 51. Bh5 {[%clk
0:00:05.6]} 51... Bc1 {[%clk 0:00:03.6]} 52. Bg6 {[%clk 0:00:06]} 52... Kd5
{[%clk 0:00:03.9]} 53. Bh5 {[%clk 0:00:06.4]} 53... Kc5 {[%clk 0:00:03.9]} 54.
Bg6 {[%clk 0:00:06.8]} 54... Kd4 {[%clk 0:00:03.7]} 55. Bh5 {[%clk 0:00:07.1]}
55... Bd2 {[%clk 0:00:04.1]} 56. Bg6 {[%clk 0:00:07.5]} 56... Kd5 {[%clk
0:00:04.4]} 57. Bh5 {[%clk 0:00:07.9]} 57... Kc5 {[%clk 0:00:04.6]} 58. Bg6
{[%clk 0:00:08.4]} 58... Bc1 {[%clk 0:00:05.1]} 59. Bh5 {[%clk 0:00:08.8]} 59...
Kd4 {[%clk 0:00:05.3]} 60. Bg6 {[%clk 0:00:09.1]} 60... Kd5 {[%clk 0:00:05.7]}
61. Bh5 {[%clk 0:00:09.5]} 61... Kd4 {[%clk 0:00:06.2]} 1/2-1/2